bitfinex/quotes_SOLUSD_20241125
["timestamp","ask_amount","ask_price","bid_price","bid_amount"]
[1732508363857,20.03484275,252.74,252.65,16.82404275]
[1732508364065,16.4594,252.77,252.65,16.82404275]
[1732508364066,13.65774275,252.76,252.67,13.65774275]
[1732508364363,19.95994275,252.8,252.69,13.65774275]
[1732508364963,6.3022,252.8,252.71,13.65774275]
[1732508365269,13.65774275,252.82,252.73,13.65774275]
[1732508365862,13.65774275,252.82,252.74,3.1653]
[1732508366037,13.65774275,252.82,252.73,16.82304275]
[1732508366243,13.65774275,252.82,252.73,13.65774275]
[1732508366443,13.65774275,252.8,252.71,16.82334275]
[1732508366945,13.65774275,252.82,252.71,16.82334275]
[1732508367846,13.65774275,252.82,252.73,13.65774275]
[1732508368663,13.65774275,252.84,252.75,13.65774275]
[1732508369065,13.65774275,252.84,252.74,23.776884]
[1732508369364,13.65774275,252.84,252.75,13.65774275]
[1732508369568,13.65774275,252.84,252.76,3.165]
[1732508369943,13.65774275,252.82,252.74,26.942084]
[1732508370347,8.52781387,252.83,252.76,20.0]
[1732508370963,8.52781387,252.81,252.71,8.52781387]
[1732508371274,8.52781387,252.79,252.69,8.52781387]
[1732508371466,8.52781387,252.79,252.66,22.6715]
[1732508371467,8.52781387,252.77,252.68,3.166]
[1732508371765,8.52781387,252.75,252.66,19.3605]
[1732508371947,8.52781387,252.75,252.66,3.1662]
[1732508372257,13.65433108,252.74,252.64,13.65433108]
[1732508372958,13.65433108,252.72,252.64,13.65433108]
[1732508373572,13.65433108,252.72,252.64,3.1665]
[1732508374066,13.65433108,252.7,252.62,16.82103108]
[1732508374268,15.6918,252.79,252.62,3.1667]
[1732508374269,13.65433108,252.68,252.62,3.1667]
[1732508374567,13.65433108,252.7,252.62,16.82103108]
[1732508374742,13.65433108,252.72,252.62,16.82103108]
[1732508374949,13.65433108,252.72,252.64,13.65433108]
[1732508375562,13.65433108,252.72,252.64,3.1665]
[1732508375869,13.65433108,252.72,252.64,16.82083108]
[1732508376757,13.65433108,252.72,252.63,3.1666]
[1732508376961,13.65433108,252.7,252.61,3.1668]
[1732508378067,13.65433108,252.72,252.62,37.43121508]
[1732508378973,13.65433108,252.72,252.63,3.1666]
[1732508379861,13.65433108,252.72,252.62,13.65433108]
[1732508380257,13.65433108,252.72,252.62,16.82103108]
[1732508380459,13.65433108,252.7,252.62,3.1667]
[1732508382077,13.65433108,252.7,252.62,13.65433108]
[1732508382579,13.65433108,252.72,252.62,13.65433108]
[1732508383284,13.65433108,252.68,252.58,13.65433108]
[1732508384163,13.65433108,252.66,252.58,13.65433108]
[1732508384562,13.65433108,252.66,252.58,16.82153108]
[1732508385470,13.65433108,252.66,252.56,13.65433108]
[1732508385670,13.65433108,252.66,252.56,16.82183108]
[1732508386375,13.65433108,252.64,252.56,16.82183108]
[1732508386581,13.65433108,252.64,252.56,13.65433108]
[1732508387782,13.65433108,252.64,252.56,16.82183108]
[1732508388480,13.65433108,252.72,252.56,16.82183108]
[1732508388481,13.65433108,252.66,252.56,16.82183108]
[1732508389065,13.65433108,252.64,252.56,16.82183108]
[1732508390291,13.65433108,252.66,252.58,16.82163108]
[1732508390784,13.65433108,252.66,252.58,13.65433108]
[1732508390989,13.65433108,252.66,252.58,16.82153108]
[1732508392092,13.65433108,252.66,252.54,22.4177]
[1732508392093,15.6918,252.79,252.6,13.65433108]
[1732508392291,8.53497835,252.72,252.63,8.53497835]
[1732508392469,8.53497835,252.74,252.65,8.53497835]
[1732508393689,8.53497835,252.72,252.63,11.70157835]
[1732508395569,15.6918,252.79,252.56,23.776884]
[1732508395570,8.53497835,252.7,252.61,8.53497835]
[1732508395890,8.53497835,252.68,252.59,28.53497835]
[1732508397070,10.0,252.78,252.57,8.53497835]
[1732508397071,8.53497835,252.66,252.57,8.53497835]
[1732508397573,8.53497835,252.64,252.56,3.1674]
[1732508398774,8.53497835,252.64,252.55,8.53497835]
[1732508399680,8.53497835,252.64,252.55,11.70257835]
[1732508400280,6.09,252.71,252.55,11.70257835]
[1732508400281,8.53497835,252.68,252.59,8.53497835]
[1732508400793,8.53497835,252.64,252.55,11.70247835]
[1732508401003,8.53497835,252.64,252.55,11.70257835]
[1732508401872,8.53497835,252.66,252.57,8.53497835]
[1732508402075,6.09,252.71,252.59,8.53497835]
[1732508402076,8.53497835,252.68,252.59,8.53497835]
[1732508402285,8.53497835,252.72,252.63,8.53497835]
[1732508402595,8.53497835,252.7,252.61,8.53497835]
[1732508403176,8.53497835,252.72,252.64,3.1665]
[1732508403839,8.53497835,252.74,252.65,8.53497835]
[1732508404190,15.6918,252.79,252.67,8.53497835]
[1732508404191,8.53497835,252.76,252.67,8.53497835]
[1732508404699,8.53497835,252.76,252.68,3.166]
[1732508405397,8.53497835,252.74,252.66,3.1662]
[1732508406478,8.53497835,252.74,252.67,8.53497835]
[1732508406686,8.53497835,252.76,252.67,8.53497835]
[1732508407390,8.53497835,252.79,252.7,8.53497835]
[1732508407596,8.53497835,252.77,252.68,8.53497835]
[1732508407806,6.2094,252.84,252.66,23.59277835]
[1732508407807,8.53497835,252.75,252.66,23.59277835]
[1732508407991,8.53497835,252.73,252.6,21.1231]
[1732508408212,8.53497835,252.71,252.62,8.53497835]
[1732508408407,8.53497835,252.71,252.62,11.70167835]
[1732508409407,8.53497835,252.69,252.6,8.53497835]
[1732508409888,8.53497835,252.65,252.58,8.53497835]
[1732508410090,8.53497835,252.65,252.56,8.53497835]
[1732508410804,8.53497835,252.65,252.56,11.70247835]
[1732508411211,8.53497835,252.69,252.6,8.53497835]
[1732508411808,8.53497835,252.67,252.58,8.53497835]
[1732508412010,8.53497835,252.69,252.6,8.53497835]
[1732508412208,8.53497835,252.71,252.62,8.53497835]
[1732508412510,8.53497835,252.73,252.64,8.53497835]
[1732508412709,8.53497835,252.73,252.55,36.249584]
[1732508412710,8.53497835,252.73,252.66,8.53497835]
[1732508413287,8.53497835,252.75,252.66,8.53497835]
[1732508413702,6.3155,252.78,252.59,8.53497835]
[1732508413703,8.53497835,252.77,252.68,8.53497835]
[1732508414292,15.0891,252.8,252.66,15.7116]
[1732508414293,8.53497835,252.79,252.7,8.53497835]
[1732508414711,8.53497835,252.79,252.66,15.7116]
[1732508414712,8.53497835,252.77,252.68,8.53497835]
[1732508415091,8.53497835,252.73,252.59,23.776884]
[1732508415311,8.53497835,252.73,252.67,20.0]
[1732508415615,8.53497835,252.75,252.67,20.0]
[1732508415995,8.53497835,252.77,252.68,32.31186235]
[1732508416312,6.5162,252.84,252.62,20.0]
[1732508416313,8.53497835,252.76,252.67,8.53497835]
[1732508417019,8.53497835,252.76,252.65,8.53497835]
[1732508417314,8.53497835,252.72,252.63,8.53497835]
[1732508417891,8.53497835,252.76,252.67,8.53497835]
[1732508418502,8.53497835,252.76,252.67,12.09687835]
[1732508419113,8.53497835,252.8,252.71,8.53497835]
[1732508419813,8.53497835,252.78,252.69,8.53497835]
[1732508420188,8.53497835,252.78,252.69,12.09647835]
[1732508421415,8.53497835,252.8,252.71,12.09627835]
[1732508421797,8.53497835,252.8,252.71,8.53497835]
[1732508422317,8.53497835,252.8,252.71,12.09627835]
[1732508422896,8.53497835,252.8,252.73,8.53497835]
[1732508423109,8.53497835,252.82,252.73,8.53497835]
[1732508423317,8.53497835,252.8,252.71,12.09627835]
[1732508425810,8.53497835,252.8,252.71,8.53497835]
[1732508426517,8.53497835,252.8,252.72,3.5612]
[1732508426820,8.53497835,252.82,252.73,8.53497835]
[1732508427321,6.2733,252.9,252.77,8.53497835]
[1732508427322,8.53497835,252.84,252.77,8.53497835]
[1732508427823,8.53497835,252.82,252.75,8.53497835]
[1732508428022,8.53497835,252.84,252.75,8.53497835]
[1732508429717,8.53497835,252.84,252.75,12.09567835]
[1732508430020,8.53497835,252.86,252.77,8.53497835]
[1732508430820,6.3124,252.97,252.85,8.53497835]
[1732508431026,14.84737835,252.97,252.88,8.53497835]
[1732508431215,8.53497835,252.93,252.85,8.53497835]
[1732508431414,8.53497835,252.89,252.8,8.53497835]
[1732508431600,8.53497835,252.89,252.78,16.0225]
[1732508431601,8.53497835,252.87,252.78,8.53497835]
[1732508432120,8.53497835,252.87,252.72,25.01417835]
[1732508432121,8.53497835,252.79,252.72,16.4792]
[1732508432315,8.53497835,252.77,252.7,8.53497835]
[1732508432510,8.53497835,252.75,252.66,8.53497835]
[1732508434405,18.53497835,252.85,252.63,13.65731178]
[1732508434406,13.65731178,252.72,252.63,13.65731178]
[1732508436720,13.65731178,252.7,252.61,13.65731178]
[1732508437429,13.65731178,252.68,252.59,30.09852261]
[1732508437928,13.65731178,252.7,252.61,13.65731178]
[1732508438508,13.65731178,252.73,252.63,13.65731178]
[1732508438728,13.65731178,252.73,252.65,13.65731178]
[1732508440122,19.74211178,252.75,252.65,13.65731178]
[1732508440327,19.74211178,252.75,252.65,12.65731178]
[1732508440628,13.65731178,252.71,252.61,13.65731178]
[1732508441008,13.65731178,252.69,252.59,13.65731178]
[1732508441310,13.65731178,252.67,252.59,13.65731178]
[1732508441505,13.65731178,252.67,252.57,13.65731178]
[1732508442444,13.65731178,252.67,252.57,16.82461178]
[1732508442609,13.65731178,252.67,252.59,13.65731178]
[1732508443126,13.65731178,252.71,252.61,13.65731178]
[1732508443834,6.0848,252.75,252.63,13.65731178]
[1732508443835,13.65731178,252.73,252.63,13.65731178]
[1732508444010,13.65731178,252.71,252.63,13.65731178]
[1732508444607,13.65731178,252.69,252.59,13.65731178]
[1732508444906,13.65731178,252.65,252.57,13.65731178]
[1732508445122,13.65731178,252.61,252.53,13.65731178]
[1732508445736,13.65731178,252.63,252.53,13.65731178]
[1732508446028,13.65731178,252.59,252.49,13.65731178]
[1732508446235,13.65731178,252.57,252.49,13.65731178]
[1732508446419,13.65731178,252.57,252.47,32.62301178]
[1732508446607,13.65731178,252.55,252.45,13.65731178]
[1732508446803,13.65731178,252.53,252.45,13.65731178]
[1732508447431,13.65731178,252.55,252.45,13.65731178]
[1732508447810,13.65731178,252.57,252.49,13.65731178]
[1732508448012,13.65731178,252.59,252.49,13.65731178]
[1732508448515,13.65731178,252.59,252.49,16.82571178]
[1732508449126,13.65731178,252.59,252.49,13.65731178]
[1732508449538,13.65731178,252.59,252.51,13.65731178]
[1732508449835,20.31561178,252.63,252.53,13.65731178]
[1732508450207,20.31561178,252.63,252.53,16.82521178]
[1732508450617,13.65731178,252.63,252.55,13.65731178]
[1732508450825,16.173,252.65,252.57,13.65731178]
[1732508451011,29.83031178,252.65,252.57,13.65731178]
[1732508453947,13.65731178,252.67,252.59,13.65731178]
[1732508454744,6.2234,252.68,252.59,13.65731178]
[1732508454944,6.2234,252.68,252.59,16.82441178]
[1732508455145,13.65731178,252.69,252.61,13.65731178]
[1732508455334,13.65731178,252.69,252.59,13.65731178]
[1732508456027,13.65731178,252.69,252.61,13.65731178]
[1732508456414,13.65731178,252.69,252.59,13.65731178]
[1732508457022,13.65731178,252.69,252.59,16.82441178]
[1732508457223,13.65731178,252.69,252.61,13.65731178]
[1732508458135,13.65731178,252.69,252.44,10.0]
[1732508458136,13.65731178,252.69,252.59,13.65731178]
[1732508459319,13.65731178,252.67,252.57,16.82461178]
[1732508459519,13.65731178,252.67,252.57,13.65731178]
[1732508460124,13.65731178,252.67,252.57,16.82471178]
[1732508460324,13.65731178,252.67,252.59,13.65731178]
[1732508460847,13.65731178,252.67,252.57,16.82471178]
[1732508462325,8.54021716,252.66,252.56,8.54021716]
[1732508462831,8.54021716,252.62,252.52,8.54021716]
[1732508463145,8.54021716,252.56,252.49,3.1684]
[1732508463922,8.54021716,252.56,252.47,11.70881716]
[1732508464122,8.54021716,252.54,252.45,8.54021716]
[1732508464339,13.67747474,252.54,252.45,13.67747474]
[1732508464545,13.67747474,252.52,252.43,13.67747474]
[1732508465745,13.67747474,252.5,252.41,13.67747474]
[1732508466025,13.67747474,252.48,252.39,13.67747474]
[1732508466946,13.67747474,252.48,252.39,16.84707474]
[1732508467126,13.67747474,252.48,252.39,13.67747474]
[1732508468225,13.67747474,252.48,252.41,13.67747474]
[1732508468431,13.67747474,252.48,252.39,13.67747474]
[1732508468627,13.67747474,252.4,252.31,3.1705]
[1732508468856,13.67747474,252.4,252.3,13.67747474]
[1732508470042,13.67747474,252.42,252.34,13.67747474]
[1732508470347,6.1819,252.45,252.38,13.67747474]
[1732508470525,16.0122,252.47,252.43,13.67747474]
[1732508470731,6.2785,252.51,252.45,13.67747474]
[1732508471228,6.2785,252.51,252.43,13.67747474]
[1732508471634,13.67747474,252.57,252.47,13.67747474]
[1732508471941,13.67747474,252.57,252.49,13.67747474]
[1732508472549,13.67747474,252.59,252.49,13.67747474]
[1732508473055,13.67747474,252.57,252.49,13.67747474]
[1732508474545,6.4852,252.6,252.53,13.67747474]
[1732508474761,13.67747474,252.65,252.55,13.67747474]
[1732508475554,6.2989,252.66,252.55,13.67747474]
[1732508475555,13.67747474,252.63,252.55,13.67747474]
[1732508475757,13.67747474,252.63,252.53,13.67747474]
[1732508476255,13.67747474,252.63,252.46,13.67747474]
[1732508476256,13.67747474,252.61,252.51,13.67747474]
[1732508477149,33.67747474,252.63,252.53,13.67747474]
[1732508477739,13.67747474,252.61,252.53,13.67747474]
[1732508477942,13.67747474,252.59,252.49,13.67747474]
[1732508478252,13.67747474,252.57,252.49,13.67747474]
[1732508479147,13.67747474,252.57,252.47,13.67747474]
[1732508479355,13.67747474,252.55,252.47,13.67747474]
[1732508480757,13.67747474,252.59,252.49,13.67747474]
[1732508481126,13.67747474,252.57,252.49,13.67747474]
[1732508481750,13.67747474,252.59,252.49,13.67747474]
[1732508481955,13.67747474,252.57,252.49,13.67747474]
[1732508483960,13.67747474,252.53,252.43,13.67747474]
[1732508484249,13.67747474,252.51,252.41,13.67747474]
[1732508484426,13.67747474,252.55,252.47,13.67747474]
[1732508484951,13.67747474,252.57,252.49,13.67747474]
[1732508485736,13.67747474,252.57,252.47,13.67747474]
[1732508485927,13.67747474,252.57,252.47,16.84607474]
[1732508486133,13.67747474,252.55,252.43,23.776884]
[1732508486347,13.67747474,252.55,252.46,13.67747474]
[1732508486655,13.67747474,252.53,252.42,16.84677474]
[1732508486948,13.67747474,252.51,252.42,13.67747474]
[1732508487751,13.67747474,252.51,252.43,3.1691]
[1732508487935,13.67747474,252.51,252.42,13.67747474]
[1732508488335,8.54973216,252.52,252.43,8.54973216]
[1732508488536,8.54973216,252.5,252.4,8.54973216]
[1732508488744,6.3367,252.52,252.36,8.54973216]
[1732508488745,8.54973216,252.46,252.36,8.54973216]
[1732508488951,8.54973216,252.42,252.34,8.54973216]
[1732508489154,8.54973216,252.4,252.32,3.1705]
[1732508489835,8.54973216,252.4,252.33,8.54973216]
[1732508490235,8.54973216,252.4,252.32,3.1705]
[1732508490543,16.3367,252.52,252.35,13.69059017]
[1732508490544,13.69059017,252.43,252.35,13.69059017]
[1732508490740,13.69059017,252.45,252.37,13.69059017]
[1732508490935,13.69059017,252.49,252.39,13.69059017]
[1732508491136,13.69059017,252.47,252.39,13.69059017]
[1732508491337,13.69059017,252.49,252.39,13.69059017]
[1732508491534,13.69059017,252.49,252.41,13.69059017]
[1732508491761,13.69059017,252.51,252.41,13.69059017]
[1732508492158,13.69059017,252.51,252.43,13.69059017]
[1732508492361,13.69059017,252.49,252.41,13.69059017]
[1732508492869,13.69059017,252.47,252.39,13.69059017]
[1732508493072,13.69059017,252.43,252.35,13.69059017]
[1732508493962,13.69059017,252.45,252.35,13.69059017]
[1732508494158,26.3367,252.52,252.33,13.69059017]
[1732508494159,13.69059017,252.43,252.33,13.69059017]
[1732508494367,13.69059017,252.41,252.33,13.69059017]
[1732508495172,6.0151,252.4,252.21,11.27215848]
[1732508495374,13.69059017,252.33,252.24,13.69059017]
[1732508495950,15.5159,252.32,252.22,3.1718]
[1732508496160,15.5159,252.32,252.23,13.69059017]
[1732508496368,13.69059017,252.31,252.21,13.69059017]
[1732508496762,15.5159,252.32,252.23,13.69059017]
[1732508497257,15.5159,252.32,252.25,13.69059017]
[1732508498162,13.69059017,252.31,252.23,13.69059017]
[1732508498482,15.5159,252.32,252.21,13.69059017]
[1732508498483,13.69059017,252.29,252.21,13.69059017]
[1732508498971,13.69059017,252.29,252.19,13.69059017]
[1732508499770,13.69059017,252.29,252.21,13.69059017]
[1732508499979,15.5159,252.32,252.23,13.69059017]
[1732508500270,13.69059017,252.35,252.27,13.69059017]
[1732508500455,15.7103,252.38,252.29,13.69059017]
[1732508500652,15.7103,252.38,252.31,13.69059017]
[1732508501286,6.0151,252.4,252.33,13.69059017]
[1732508501958,13.69059017,252.41,252.27,23.776884]
[1732508502168,13.69059017,252.39,252.31,13.69059017]
[1732508502462,15.7103,252.44,252.35,13.69059017]
[1732508502785,6.4167,252.47,252.39,13.69059017]
[1732508502957,6.4167,252.47,252.33,13.69059017]
[1732508502958,15.7103,252.5,252.41,13.69059017]
[1732508503570,15.7103,252.5,252.43,13.69059017]
[1732508503779,13.69059017,252.51,252.43,13.69059017]
[1732508504284,13.69059017,252.51,252.42,13.69059017]
[1732508504582,20.10729017,252.53,252.44,13.69059017]
[1732508505582,13.69059017,252.51,252.42,13.69059017]
[1732508505983,6.4167,252.53,252.44,13.69059017]
[1732508505984,20.10729017,252.53,252.44,13.69059017]
[1732508506175,13.69059017,252.51,252.42,13.69059017]
[1732508509078,6.4167,252.53,252.28,25.8553]
[1732508509079,13.69059017,252.49,252.4,13.69059017]
[1732508509887,13.69059017,252.47,252.38,13.69059017]
[1732508510061,13.69059017,252.45,252.36,13.69059017]
[1732508510268,13.69059017,252.43,252.31,3.1706]
[1732508510473,13.69059017,252.41,252.32,13.69059017]
[1732508511386,13.69059017,252.41,252.32,16.86109017]
[1732508511561,13.69059017,252.45,252.36,13.69059017]
[1732508511761,13.69059017,252.43,252.34,13.69059017]
[1732508513480,13.69059017,252.43,252.34,16.86079017]
[1732508513672,13.69059017,252.45,252.36,13.69059017]
[1732508514282,13.69059017,252.47,252.38,13.69059017]
[1732508514872,13.69059017,252.49,252.4,13.69059017]
[1732508516406,13.69059017,252.49,252.4,16.86009017]
[1732508521878,13.69059017,252.55,252.46,13.69059017]
[1732508522395,15.7103,252.57,252.4,16.86009017]
[1732508522396,13.69059017,252.49,252.4,16.86009017]
[1732508523372,13.69059017,252.49,252.4,13.69059017]
[1732508524797,13.69059017,252.43,252.37,20.0]
[1732508524990,13.69059017,252.47,252.37,20.0]
[1732508525494,13.69059017,252.45,252.37,20.0]
[1732508525711,13.69059017,252.47,252.37,20.0]
[1732508525992,13.69059017,252.47,252.38,16.86039017]
[1732508526600,23.776884,252.55,252.36,13.69059017]
[1732508526601,13.69059017,252.45,252.36,13.69059017]
[1732508526776,13.69059017,252.45,252.35,23.776884]
[1732508527196,13.69059017,252.45,252.34,16.86079017]
[1732508527495,13.69059017,252.41,252.32,16.86099017]
[1732508527880,13.69059017,252.39,252.3,13.69059017]
[1732508528486,13.69059017,252.39,252.3,16.86129017]
[1732508529189,13.69059017,252.41,252.32,13.69059017]
[1732508529997,13.69059017,252.43,252.33,3.1704]
[1732508530200,15.063,252.44,252.36,13.69059017]
[1732508530375,20.27499017,252.47,252.38,13.69059017]
[1732508530696,13.69059017,252.43,252.32,13.69059017]
[1732508530884,13.69059017,252.41,252.32,13.69059017]
[1732508531589,13.69059017,252.43,252.34,13.69059017]
[1732508531892,20.27499017,252.47,252.36,13.69059017]
[1732508532101,13.69059017,252.45,252.34,13.69059017]
[1732508532292,8.55531337,252.44,252.34,8.55531337]
[1732508532593,8.55531337,252.42,252.28,3.171]
[1732508532776,8.55531337,252.42,252.33,8.55531337]
[1732508532973,8.55531337,252.44,252.33,8.55531337]
[1732508533387,8.55531337,252.44,252.35,8.55531337]
[1732508533698,8.55531337,252.46,252.35,8.55531337]
[1732508533873,8.55531337,252.46,252.37,8.55531337]
[1732508534379,8.55531337,252.44,252.35,8.55531337]
[1732508534898,6.5844,252.47,252.32,8.55531337]
[1732508534899,8.55531337,252.42,252.32,8.55531337]
[1732508535278,8.55531337,252.4,252.3,8.55531337]
[1732508537097,8.55531337,252.36,252.26,8.55531337]
[1732508538094,8.55531337,252.36,252.28,8.55531337]
[1732508538399,8.55531337,252.4,252.3,8.55531337]
[1732508539002,8.55531337,252.4,252.3,11.72611337]
[1732508541004,8.55531337,252.42,252.32,8.55531337]
[1732508542009,6.5844,252.47,252.37,8.55531337]
[1732508542304,8.55531337,252.48,252.39,8.55531337]
[1732508542493,8.55531337,252.48,252.37,8.55531337]
[1732508542999,8.55531337,252.48,252.37,11.72511337]
[1732508543376,8.55531337,252.46,252.35,11.72541337]
[1732508544088,8.55531337,252.48,252.37,8.55531337]
[1732508544499,8.55531337,252.48,252.39,8.55531337]
[1732508544793,24.01581337,252.5,252.39,8.55531337]
[1732508544990,8.55531337,252.48,252.39,8.55531337]
[1732508545491,8.55531337,252.46,252.37,8.55531337]
[1732508545694,8.55531337,252.44,252.35,32.33219737]
[1732508545893,8.55531337,252.44,252.35,8.55531337]
[1732508546103,8.55531337,252.42,252.33,8.55531337]
[1732508547508,8.55531337,252.38,252.25,15.6654]
[1732508547687,8.55531337,252.4,252.3,8.55531337]
[1732508549686,8.55531337,252.42,252.32,8.55531337]
[1732508550114,8.55531337,252.4,252.32,8.55531337]
[1732508550483,8.55531337,252.4,252.3,8.55531337]
[1732508550788,8.55531337,252.36,252.28,8.55531337]
[1732508551000,8.55531337,252.36,252.26,8.55531337]
[1732508551204,6.067,252.42,252.22,8.55531337]
[1732508551205,8.55531337,252.32,252.22,8.55531337]
[1732508551386,8.55531337,252.3,252.22,8.55531337]
[1732508551789,8.55531337,252.32,252.22,8.55531337]
[1732508555306,8.55531337,252.3,252.2,8.55531337]
[1732508555785,8.55531337,252.3,252.22,8.55531337]
[1732508556385,8.55531337,252.34,252.24,8.55531337]
[1732508557111,8.55531337,252.36,252.28,8.55531337]
[1732508557312,20.0,252.35,252.28,8.55531337]
[1732508558488,24.46611337,252.38,252.28,8.55531337]
[1732508558692,24.46611337,252.38,252.3,8.55531337]
[1732508558917,8.55531337,252.4,252.32,8.55531337]
[1732508559411,14.62231337,252.42,252.32,8.55531337]
[1732508559611,14.62231337,252.42,252.34,8.55531337]
[1732508560191,8.55531337,252.42,252.34,8.55531337]
[1732508560411,6.5903,252.48,252.36,8.55531337]
[1732508560615,8.55531337,252.48,252.4,8.55531337]
[1732508561113,8.55531337,252.48,252.38,8.55531337]
[1732508561293,8.55531337,252.5,252.4,8.55531337]
[1732508561499,8.55531337,252.5,252.42,8.55531337]
[1732508562311,22.4974,252.62,252.47,8.55531337]
[1732508562515,8.55531337,252.56,252.47,8.55531337]
[1732508562827,22.4974,252.62,252.49,8.55531337]
[1732508562828,8.55531337,252.58,252.49,8.55531337]
[1732508563111,8.55531337,252.6,252.51,8.55531337]
[1732508565609,8.55531337,252.58,252.49,8.55531337]
[1732508567198,8.55531337,252.54,252.44,24.87001337]
[1732508569020,8.55531337,252.52,252.44,24.87001337]
[1732508569893,8.55531337,252.48,252.4,8.55531337]
[1732508571415,8.55531337,252.52,252.44,8.55531337]
[1732508571721,8.55531337,252.52,252.39,3.1696]
[1732508571722,8.55531337,252.52,252.42,8.55531337]
[1732508571903,8.55531337,252.5,252.4,8.55531337]
[1732508572695,8.55531337,252.52,252.44,8.55531337]
[1732508573123,8.55531337,252.54,252.46,8.55531337]
[1732508573420,8.55531337,252.54,252.44,8.55531337]
[1732508574023,8.55531337,252.52,252.42,8.55531337]
[1732508575203,8.55531337,252.52,252.42,11.72451337]
[1732508575608,8.55531337,252.52,252.44,8.55531337]
[1732508576705,8.55531337,252.52,252.42,8.55531337]
[1732508577110,8.55531337,252.5,252.42,8.55531337]
[1732508578312,8.55531337,252.5,252.42,11.72451337]
[1732508578513,8.55531337,252.52,252.42,11.72451337]
[1732508579003,8.55531337,252.5,252.42,3.1692]
[1732508579920,8.55531337,252.54,252.45,8.55531337]
[1732508580507,8.55531337,252.52,252.43,11.72441337]
[1732508582534,8.55531337,252.5,252.41,11.72461337]
[1732508582907,8.55531337,252.5,252.4,20.0]
[1732508582908,8.55531337,252.46,252.37,11.72511337]
[1732508583437,8.55531337,252.46,252.37,8.55531337]
[1732508584228,8.55531337,252.46,252.38,3.1698]
[1732508585617,8.55531337,252.42,252.34,3.1702]
[1732508586504,21.8065,252.49,252.34,3.1702]
[1732508586505,8.55531337,252.4,252.34,3.1702]
[1732508586708,8.55531337,252.4,252.33,11.72571337]
[1732508587316,8.55531337,252.42,252.33,11.72571337]
[1732508587926,8.55531337,252.42,252.33,3.1704]
[1732508588246,8.55531337,252.4,252.32,8.55531337]
[1732508588413,8.55531337,252.4,252.3,8.55531337]
[1732508589134,8.55531337,252.4,252.3,11.72601337]
[1732508589321,8.55531337,252.38,252.3,8.55531337]
[1732508589518,8.55531337,252.46,252.25,15.6274]
[1732508589519,8.55531337,252.36,252.26,8.55531337]
[1732508589733,8.55531337,252.34,252.26,8.55531337]
[1732508590033,8.55531337,252.32,252.22,8.55531337]
[1732508590212,8.55531337,252.32,252.22,11.72701337]
[1732508590408,8.55531337,252.32,252.22,8.55531337]
[1732508590922,8.55531337,252.32,252.24,8.55531337]
[1732508591930,21.5945,252.37,252.17,6.4435]
[1732508591931,8.55531337,252.3,252.2,8.55531337]
[1732508594335,20.0,252.34,252.13,15.1474]
[1732508594336,8.55531337,252.28,252.18,8.55531337]
[1732508594525,8.55531337,252.28,252.2,8.55531337]
[1732508594726,8.55531337,252.28,252.18,8.55531337]
[1732508597419,8.55531337,252.3,252.2,8.55531337]
[1732508597746,20.0,252.29,252.22,8.55531337]
[1732508597916,20.0,252.29,252.2,8.55531337]
[1732508598117,8.55531337,252.32,252.22,8.55531337]
[1732508599143,8.55531337,252.34,252.26,8.55531337]
[1732508599317,8.55531337,252.36,252.26,8.55531337]
[1732508599525,21.5945,252.37,252.28,8.55531337]
[1732508600019,21.5945,252.37,252.3,8.55531337]
[1732508600645,8.55531337,252.46,252.3,8.55531337]
[1732508600646,8.55531337,252.4,252.3,8.55531337]
[1732508601026,22.7045,252.43,252.28,3.171]
[1732508601027,8.55531337,252.38,252.28,8.55531337]
[1732508601228,8.55531337,252.36,252.28,8.55531337]
[1732508602150,22.7045,252.43,252.28,8.55531337]
[1732508602151,8.55531337,252.38,252.3,8.55531337]
[1732508603346,8.55531337,252.4,252.3,11.72601337]
[1732508603644,22.7045,252.43,252.32,8.55531337]
[1732508603645,8.55531337,252.42,252.32,8.55531337]
[1732508604218,22.7045,252.43,252.3,3.1707]
[1732508604219,22.7045,252.43,252.34,8.55531337]
[1732508604425,16.127,252.43,252.36,8.55531337]
[1732508604645,8.55531337,252.47,252.38,8.55531337]
[1732508604853,31.25981337,252.49,252.38,8.55531337]
[1732508605028,8.55531337,252.47,252.38,8.55531337]
[1732508605948,8.55531337,252.45,252.36,11.72531337]
[1732508607229,22.7045,252.49,252.38,8.55531337]
[1732508607230,8.55531337,252.47,252.38,8.55531337]
[1732508608337,8.55531337,252.47,252.38,11.72511337]
[1732508608851,8.55531337,252.47,252.38,8.55531337]
[1732508609033,21.35,252.59,252.44,8.55531337]
[1732508609236,8.55531337,252.5,252.4,8.55531337]
[1732508609635,8.55531337,252.48,252.38,8.55531337]
[1732508610959,8.55531337,252.46,252.38,8.55531337]
[1732508611154,23.776884,252.55,252.34,8.55531337]
[1732508611155,8.55531337,252.42,252.34,8.55531337]
[1732508612239,8.55531337,252.42,252.32,8.55531337]
[1732508612641,8.55531337,252.42,252.34,8.55531337]